bitfinex/quotes_BTCUSD_20240703
["timestamp","ask_amount","ask_price","bid_price","bid_amount"]
[1720023818173,0.3,60625.0,60616.0,0.08015582]
[1720023818411,1.09356787,60624.0,60617.0,0.16000594]
[1720023818591,1.08457674,60623.0,60617.0,0.16000594]
[1720023818813,0.1935,60623.0,60617.0,0.16000594]
[1720023822276,0.1935,60623.0,60617.0,0.4148345]
[1720023822480,0.1935,60623.0,60617.0,0.3565345]
[1720023822481,0.1017,60623.0,60617.0,0.3565345]
[1720023822856,0.1927,60628.0,60619.0,0.19652856]
[1720023823029,0.1927,60628.0,60624.0,0.08015582]
[1720023823207,0.1927,60628.0,60625.0,0.1602988]
[1720023824450,0.0002,60629.0,60625.0,0.35682736]
[1720023824656,0.0002,60629.0,60628.0,0.0583]
[1720023824970,0.0002,60629.0,60628.0,0.41842581]
[1720023825192,0.0002,60629.0,60628.0,0.74830581]
[1720023825431,0.00833,60650.0,60645.0,0.19652856]
[1720023825579,0.00833,60650.0,60645.0,0.49858055]
[1720023826970,0.00833,60650.0,60645.0,0.44028055]
[1720023827178,0.00833,60650.0,60645.0,0.37082736]
[1720023828144,0.00833,60650.0,60645.0,0.38482736]
[1720023828554,0.00833,60650.0,60645.0,0.37072736]
[1720023828759,0.00833,60650.0,60645.0,0.37062736]
[1720023829277,0.00833,60650.0,60645.0,0.35662736]
[1720023829410,0.00833,60650.0,60645.0,0.37062736]
[1720023829851,0.00833,60650.0,60645.0,0.35662736]
[1720023830229,0.00833,60650.0,60645.0,0.42892736]
[1720023830440,0.00833,60650.0,60645.0,0.41492736]
[1720023830644,0.00833,60650.0,60645.0,0.42892736]
[1720023830838,0.00833,60650.0,60645.0,0.44292736]
[1720023831044,0.00833,60650.0,60645.0,0.42882736]
[1720023831284,0.00833,60650.0,60645.0,0.41482736]
[1720023831757,0.00833,60650.0,60645.0,0.52462736]
[1720023832101,0.00833,60650.0,60645.0,0.53862736]
[1720023832672,0.00833,60650.0,60645.0,0.44282736]
[1720023832883,0.00833,60650.0,60645.0,0.42882736]
[1720023833214,0.00833,60650.0,60645.0,0.44282736]
[1720023833614,0.00833,60650.0,60645.0,0.47282736]
[1720023834242,0.00833,60650.0,60645.0,0.44282736]
[1720023834782,0.00833,60650.0,60645.0,0.47282736]
[1720023835199,0.00833,60650.0,60645.0,0.77282736]
[1720023835403,0.00844,60646.0,60645.0,0.90392736]
[1720023835544,0.00844,60646.0,60645.0,1.01372736]
[1720023835742,0.00844,60646.0,60645.0,1.04690736]
[1720023836144,0.00844,60646.0,60645.0,1.01690736]
[1720023836588,0.00844,60646.0,60645.0,1.04690736]
[1720023837008,0.00844,60646.0,60645.0,1.03070736]
[1720023837245,0.00844,60646.0,60645.0,1.04470736]
[1720023837730,0.00844,60646.0,60645.0,1.03070736]
[1720023837934,0.00844,60646.0,60645.0,1.01670736]
[1720023838086,0.00844,60646.0,60645.0,1.03070736]
[1720023838976,0.00844,60646.0,60645.0,1.04470736]
[1720023839190,0.00844,60646.0,60645.0,1.01670736]
[1720023839622,0.00844,60646.0,60645.0,1.00070736]
[1720023840435,0.00844,60646.0,60645.0,1.03070736]
[1720023840637,0.00844,60646.0,60645.0,1.01470736]
[1720023841375,0.00844,60646.0,60645.0,1.03070736]
[1720023841751,0.00844,60646.0,60645.0,1.04470736]
[1720023841986,0.00844,60646.0,60645.0,0.71470736]
[1720023842173,0.00844,60646.0,60645.0,0.73070736]
[1720023842903,0.00844,60646.0,60645.0,0.70070736]
[1720023843182,0.00844,60646.0,60645.0,0.47380736]
[1720023843410,0.00844,60646.0,60645.0,0.45980736]
[1720023843733,0.00844,60646.0,60645.0,0.38232736]
[1720023844391,0.00844,60646.0,60645.0,0.36832736]
[1720023844583,0.00844,60646.0,60645.0,0.38232736]
[1720023844793,0.00844,60646.0,60645.0,0.36832736]
[1720023844993,0.00844,60646.0,60645.0,0.38232736]
[1720023845516,0.0187274,60646.0,60645.0,0.36832736]
[1720023845723,0.0187274,60646.0,60645.0,0.1742988]
[1720023845856,0.0187274,60646.0,60645.0,0.35432736]
[1720023846262,0.0187274,60646.0,60645.0,0.36832736]
[1720023846467,0.1192274,60646.0,60645.0,0.21502856]
[1720023846779,0.2297274,60646.0,60645.0,0.21502856]
[1720023846979,0.2297274,60646.0,60645.0,0.20102856]
[1720023847329,0.2297274,60646.0,60645.0,0.20092856]
[1720023847551,0.2297274,60646.0,60645.0,0.36122736]
[1720023847701,0.0187274,60646.0,60645.0,0.41852736]
[1720023847907,0.00844,60646.0,60645.0,0.41852736]
[1720023848494,0.00844,60646.0,60645.0,0.41642736]
[1720023849118,0.00844,60646.0,60645.0,0.44642736]
[1720023849324,0.00844,60646.0,60645.0,0.44742736]
[1720023849589,0.00844,60646.0,60645.0,0.44642736]
[1720023849770,0.00844,60646.0,60645.0,0.47960736]
[1720023850023,0.00844,60646.0,60645.0,0.49360736]
[1720023850209,0.00844,60646.0,60645.0,1.31942136]
[1720023850433,0.00844,60646.0,60645.0,0.85462736]
[1720023850638,0.00844,60646.0,60645.0,0.90180736]
[1720023850788,0.00844,60646.0,60645.0,0.85780736]
[1720023851869,0.00844,60646.0,60645.0,0.55780736]
[1720023852083,0.00844,60646.0,60645.0,0.85780736]
[1720023852283,0.00844,60646.0,60645.0,0.87272036]
[1720023852512,0.00844,60646.0,60645.0,0.85872036]
[1720023852702,0.00844,60646.0,60645.0,0.87272036]
[1720023853112,0.00844,60646.0,60645.0,0.90272036]
[1720023853359,0.00844,60646.0,60645.0,0.91672036]
[1720023853527,0.00844,60646.0,60645.0,0.58672036]
[1720023853777,0.00844,60646.0,60645.0,0.55492036]
[1720023853975,0.00844,60646.0,60645.0,0.59892036]
[1720023854197,0.00844,60646.0,60645.0,0.89892036]
[1720023854720,0.00844,60646.0,60645.0,0.86892036]
[1720023854917,0.00844,60646.0,60645.0,0.56892036]
[1720023855123,0.00844,60646.0,60645.0,0.55492036]
[1720023855324,0.00844,60646.0,60645.0,0.85492036]
[1720023855827,0.00844,60646.0,60645.0,0.86892036]
[1720023856044,0.00944,60646.0,60645.0,0.85492036]
[1720023856457,0.00944,60646.0,60645.0,0.56892036]
[1720023856663,0.00944,60646.0,60645.0,0.55492036]
[1720023856906,0.00944,60646.0,60645.0,0.44672036]
[1720023857110,0.00944,60646.0,60645.0,0.46072036]
[1720023857514,0.00944,60646.0,60645.0,0.49072036]
[1720023857916,0.00944,60646.0,60645.0,0.46072036]
[1720023858404,0.00944,60646.0,60645.0,0.48616036]
[1720023858603,0.00944,60646.0,60645.0,0.47016036]
[1720023858781,0.23434707,60671.0,60664.0,0.19402856]
[1720023858981,0.03752061,60670.0,60665.0,0.1602988]
[1720023859257,0.03752061,60669.0,60665.0,0.1602988]
[1720023859422,0.03752061,60668.0,60665.0,0.1602988]
[1720023859597,0.03752061,60667.0,60665.0,0.1602988]
[1720023859809,0.03752061,60666.0,60665.0,0.1602988]
[1720023861244,0.03729901,60666.0,60665.0,0.1602988]
[1720023861440,0.2355,60681.0,60665.0,0.1602988]
[1720023861441,0.46984707,60681.0,60665.0,0.1602988]
[1720023861664,0.03733493,60676.0,60665.0,0.1602988]
[1720023861881,0.29363493,60675.0,60665.0,0.1602988]
[1720023862099,0.03733493,60674.0,60665.0,0.1602988]
[1720023862308,0.03733493,60673.0,60665.0,0.1602988]
[1720023862512,0.03733493,60672.0,60665.0,0.1642988]
[1720023862781,0.03733493,60671.0,60665.0,0.1642988]
[1720023863023,0.03733493,60674.0,60665.0,0.1722988]
[1720023863200,0.03733493,60674.0,60665.0,0.1602988]
[1720023863605,0.04133493,60674.0,60665.0,0.1602988]
[1720023864023,0.03733493,60674.0,60665.0,0.1602988]
[1720023864528,0.14133493,60674.0,60665.0,0.1602988]
[1720023865825,0.104,60674.0,60665.0,0.1602988]
[1720023866225,0.1924,60674.0,60665.0,0.1602988]
[1720023866441,0.1,60673.0,60665.0,0.1602988]
[1720023867008,0.1,60673.0,60666.0,0.06565293]
[1720023867217,0.1,60673.0,60668.0,0.06565293]
[1720023867553,0.002,60674.0,60669.0,0.1602988]
[1720023867554,0.03885947,60672.0,60669.0,0.1602988]
[1720023868239,0.1,60674.0,60669.0,0.1602988]
[1720023868240,0.03885664,60671.0,60669.0,0.1602988]
[1720023868444,0.1,60674.0,60669.0,0.1602988]
[1720023868602,0.03900085,60670.0,60669.0,0.1602988]
[1720023868802,0.1,60674.0,60669.0,0.1602988]
[1720023869000,0.0390045,60673.0,60669.0,0.1602988]
[1720023869212,0.1,60674.0,60669.0,0.1602988]
[1720023869448,0.03912168,60673.0,60669.0,0.1602988]
[1720023869694,0.03911929,60672.0,60669.0,0.1642988]
[1720023869829,0.03911929,60671.0,60669.0,0.1642988]
[1720023870035,0.03911929,60670.0,60669.0,0.1602988]
[1720023870635,0.03911929,60670.0,60669.0,0.1662988]
[1720023871818,0.22751929,60670.0,60669.0,0.006]
[1720023872002,0.23780268,60670.0,60669.0,0.006]
[1720023872424,0.23780268,60670.0,60669.0,0.004]
[1720023872629,0.25801369,60670.0,60669.0,0.004]
[1720023872838,0.25802242,60670.0,60669.0,0.01]
[1720023872985,0.25802242,60670.0,60665.0,0.19402856]
[1720023873189,0.06962242,60669.0,60666.0,0.1602988]
[1720023874625,0.06962242,60669.0,60666.0,0.1622988]
[1720023874840,0.29644707,60667.0,60666.0,0.002]
[1720023875008,1.72330249,60667.0,60666.0,0.002]
[1720023875187,1.88963649,60667.0,60666.0,0.002]
[1720023875398,1.45861349,60667.0,60666.0,0.002]
[1720023875893,0.23434707,60664.0,60657.0,0.19402856]
[1720023876111,0.1884,60662.0,60658.0,0.1602988]
[1720023876339,0.30396949,60661.0,60658.0,0.1602988]
[1720023876540,0.1884,60662.0,60658.0,0.1602988]
[1720023876541,0.081784,60660.0,60658.0,0.1602988]
[1720023876741,0.081784,60659.0,60658.0,0.1602988]
[1720023878420,0.18542863,60659.0,60652.0,0.19402856]
[1720023878638,0.081784,60658.0,60653.0,0.1600598]
[1720023878839,0.081784,60657.0,60653.0,0.1600598]
[1720023879049,0.081784,60656.0,60653.0,0.1600598]
[1720023879397,0.081784,60655.0,60653.0,0.1600598]
[1720023879564,0.081784,60654.0,60653.0,0.1600598]
[1720023879790,0.1884,60659.0,60653.0,0.1600598]
[1720023879999,0.08246893,60658.0,60653.0,0.36008836]
[1720023880135,0.1884,60659.0,60653.0,0.36408836]
[1720023880337,0.18666113,60658.0,60653.0,0.36408836]
[1720023880536,0.18666113,60658.0,60656.0,0.08015582]
[1720023880537,0.08247139,60657.0,60656.0,0.08015582]
[1720023880732,0.08247139,60657.0,60656.0,0.24045462]
[1720023880936,0.02217205,60657.0,60656.0,0.24045462]
[1720023881555,0.08247139,60657.0,60656.0,0.24045462]
[1720023881759,0.02217205,60657.0,60656.0,0.30610755]
[1720023881958,0.08247139,60657.0,60656.0,0.50013611]
[1720023882167,0.08380069,60658.0,60656.0,0.50013611]
[1720023882384,0.09885466,60659.0,60657.0,0.1602988]
[1720023882589,0.16142929,60658.0,60657.0,0.1602988]
[1720023882845,0.16142741,60658.0,60657.0,0.22595173]
[1720023883176,0.06257524,60658.0,60657.0,0.1602988]
[1720023883368,0.16142922,60658.0,60657.0,0.1602988]
[1720023883844,0.06257937,60658.0,60657.0,0.22595173]
[1720023884030,0.16143379,60658.0,60657.0,0.22595173]
[1720023884231,0.03042175,60663.0,60657.0,0.1602988]
[1720023884430,0.09885279,60658.0,60657.0,0.1602988]
[1720023884615,0.16158971,60658.0,60657.0,0.1602988]
[1720023884826,0.06273692,60658.0,60657.0,0.1602988]
[1720023885138,0.18630291,60658.0,60657.0,0.1602988]
[1720023885496,0.16159682,60658.0,60657.0,0.47828029]
[1720023885691,0.06273692,60658.0,60657.0,0.41998029]
[1720023885879,0.06273692,60658.0,60657.0,0.47828029]
[1720023886124,0.06338592,60658.0,60657.0,0.48828029]
[1720023886461,0.12356932,60661.0,60658.0,0.06565293]
[1720023886462,0.09885545,60659.0,60658.0,0.06565293]
[1720023886669,0.16264318,60659.0,60658.0,0.22595173]
[1720023886871,0.16264318,60659.0,60658.0,0.1602988]
[1720023886872,0.06378773,60659.0,60658.0,0.1602988]
[1720023887094,0.16264823,60659.0,60658.0,0.41998029]
[1720023887250,0.06378773,60659.0,60658.0,0.47828029]
[1720023887452,0.06378773,60659.0,60658.0,0.41998029]
[1720023888265,0.06378773,60659.0,60658.0,0.35432736]
[1720023888266,0.16264823,60659.0,60658.0,0.35432736]
[1720023889010,0.06378773,60659.0,60658.0,0.35432736]
[1720023889218,0.06378773,60659.0,60658.0,0.35352736]
[1720023889428,0.06469399,60659.0,60658.0,0.36652736]
[1720023890573,0.06469399,60659.0,60658.0,0.37652736]
[1720023890984,0.06469399,60659.0,60658.0,0.023]
[1720023890985,0.2129956,60659.0,60658.0,0.023]
[1720023891196,0.16124489,60659.0,60658.0,0.023]
[1720023892565,0.1609441,60659.0,60658.0,0.023]
[1720023892970,0.16092701,60659.0,60658.0,0.023]
[1720023893167,0.16092701,60659.0,60658.0,0.01]
[1720023893168,0.86632201,60659.0,60658.0,0.01]
[1720023893352,0.86632201,60659.0,60658.0,0.005]
[1720023893776,0.86632201,60659.0,60658.0,0.003]
[1720023893947,0.86632201,60659.0,60658.0,0.008]
[1720023893948,0.16092701,60659.0,60658.0,0.008]
[1720023894134,0.70455201,60659.0,60658.0,0.008]
[1720023894496,0.93889908,60659.0,60658.0,0.003]
[1720023894914,1.05783899,60659.0,60658.0,0.005]
[1720023895286,0.70455201,60659.0,60658.0,0.0112]
[1720023895499,0.87797207,60659.0,60658.0,0.0112]
[1720023895693,1.0379878,60659.0,60658.0,0.0112]
[1720023895972,1.03800945,60659.0,60658.0,0.0112]
[1720023896201,1.16868045,60659.0,60658.0,0.0112]
[1720023896438,1.16868045,60659.0,60658.0,0.0062]
[1720023897108,1.16968045,60659.0,60658.0,0.0053]
[1720023897303,1.16968045,60659.0,60658.0,0.0023]
[1720023897575,1.17468045,60659.0,60658.0,0.0033]
[1720023898021,1.17468045,60659.0,60658.0,0.0023]
[1720023898022,0.835313,60659.0,60658.0,0.0023]
[1720023898444,0.843813,60659.0,60658.0,0.0033]
[1720023898871,0.84356363,60659.0,60658.0,0.0033]
[1720023899072,0.83856363,60659.0,60658.0,0.0023]
[1720023899274,0.94885896,60659.0,60658.0,0.0023]
[1720023899504,1.0719107,60659.0,60658.0,0.0023]
[1720023899758,1.0719107,60659.0,60658.0,0.0033]
[1720023899759,1.0729107,60659.0,60658.0,0.0033]
[1720023899986,1.0719107,60659.0,60658.0,0.0023]
[1720023900236,1.0719107,60659.0,60658.0,0.0033]
[1720023900458,0.83856363,60659.0,60658.0,0.0033]
[1720023900702,0.75053163,60659.0,60658.0,0.0033]
[1720023901094,0.75553163,60659.0,60658.0,0.0043]
[1720023901298,0.9898787,60659.0,60658.0,0.0043]
[1720023901944,1.2898787,60659.0,60658.0,0.0043]
[1720023902588,0.23434707,60651.0,60645.0,0.000913]
[1720023902793,0.33672652,60646.0,60645.0,0.000913]
[1720023903010,1.10931095,60646.0,60645.0,0.000913]
[1720023903213,0.97496388,60646.0,60645.0,0.000913]
[1720023904293,0.91133,60646.0,60645.0,0.000913]
[1720023904500,1.07128371,60646.0,60645.0,0.000913]
[1720023904930,1.07130738,60646.0,60645.0,0.000913]
[1720023905142,1.30565445,60646.0,60645.0,0.000913]
[1720023905376,1.45985697,60646.0,60645.0,0.000913]
[1720023905591,1.62662768,60646.0,60645.0,0.003913]
[1720023905783,1.45985697,60646.0,60645.0,0.003913]
[1720023905999,1.47806301,60646.0,60645.0,0.003913]
[1720023906203,1.77806301,60646.0,60645.0,0.000913]
[1720023907141,1.77806301,60646.0,60633.0,0.19402856]
[1720023907142,0.23434707,60641.0,60633.0,0.19402856]
[1720023907464,0.0656,60647.0,60627.0,0.19402856]
[1720023907465,0.1884,60634.0,60627.0,0.19402856]
[1720023907681,0.14810946,60636.0,60626.0,0.1094]
[1720023907682,0.1884,60627.0,60626.0,0.19402856]
[1720023907890,0.2533672,60627.0,60626.0,0.35432736]
[1720023908092,0.37680542,60627.0,60626.0,0.35432736]
[1720023908298,0.0649672,60627.0,60626.0,0.35432736]
[1720023908504,0.05177044,60627.0,60626.0,0.35432736]
[1720023908710,0.0649672,60627.0,60626.0,0.35432736]
[1720023908912,0.0649672,60627.0,60626.0,0.41998029]
[1720023909207,0.01319676,60627.0,60626.0,0.71728029]
[1720023909414,0.01319676,60627.0,60626.0,0.71828029]
[1720023909635,0.05935969,60646.0,60637.0,0.06565293]
[1720023909636,0.09870099,60640.0,60637.0,0.06565293]
[1720023909854,0.14810946,60648.0,60642.0,0.19402856]
[1720023909855,0.09870099,60648.0,60642.0,0.19402856]
[1720023910098,0.09870099,60655.0,60649.0,0.19392856]
[1720023910310,0.12343822,60656.0,60650.0,0.1602988]
[1720023910311,0.05165757,60654.0,60650.0,0.1602988]
[1720023910574,0.12343822,60657.0,60650.0,0.1602988]
[1720023910575,0.04137013,60653.0,60650.0,0.1602988]
[1720023910730,0.1884,60659.0,60650.0,0.1602988]
[1720023910731,0.01028573,60652.0,60650.0,0.1602988]
[1720023910936,0.1884,60659.0,60650.0,0.1602988]
[1720023910937,0.01028573,60651.0,60650.0,0.1602988]
[1720023911320,0.0503149,60651.0,60650.0,0.1602988]
[1720023911668,0.0503149,60652.0,60650.0,0.1602988]
[1720023911869,0.01028573,60651.0,60650.0,0.1602988]
[1720023912013,0.01028573,60652.0,60650.0,0.1602988]
[1720023912215,0.17587285,60659.0,60650.0,0.1602988]
[1720023912418,0.17587285,60659.0,60650.0,0.1632988]
[1720023912819,0.001,60651.0,60650.0,0.1632988]
[1720023913349,0.17587285,60659.0,60650.0,0.1602988]
[1720023913541,0.17587285,60659.0,60651.0,0.2442]
[1720023913765,0.17587285,60659.0,60653.0,0.25958149]
[1720023913766,0.0358812,60659.0,60653.0,0.25958149]
[1720023913910,0.0358812,60659.0,60655.0,0.06565293]
[1720023914106,0.0358812,60659.0,60654.0,0.1602988]
[1720023914107,0.006,60659.0,60657.0,0.06565293]
[1720023914332,0.006,60659.0,60658.0,0.1602988]
[1720023915226,0.006,60659.0,60658.0,0.28425173]
[1720023915453,0.03011684,60663.0,60658.0,0.4170988]
[1720023915597,0.1884,60670.0,60658.0,0.4170988]
[1720023915598,0.1,60668.0,60658.0,0.4170988]
[1720023916176,0.1,60668.0,60661.0,0.06565293]
[1720023916416,0.1,60668.0,60662.0,0.1602988]
[1720023916646,0.03039424,60670.0,60662.0,0.1602988]
[1720023916885,0.1,60671.0,60663.0,0.19392856]
[1720023916886,0.2884,60671.0,60663.0,0.19392856]
[1720023917152,0.2884,60671.0,60658.0,0.26508]
[1720023917153,0.2884,60671.0,60664.0,0.35422736]
[1720023917590,0.2884,60671.0,60664.0,0.35412736]
[1720023919501,0.12333247,60666.0,60664.0,0.35412736]
[1720023919664,0.12333247,60666.0,60663.0,0.19392856]
[1720023919898,0.12333247,60665.0,60663.0,0.1602988]
[1720023920137,0.22333247,60665.0,60663.0,0.35422736]
[1720023920344,0.02035951,60664.0,60663.0,0.35412736]
[1720023921685,0.11902739,60664.0,60663.0,0.35412736]
[1720023922701,0.02135951,60664.0,60663.0,0.36212736]
[1720023922911,0.12002348,60664.0,60663.0,0.36212736]
[1720023923110,0.11902348,60664.0,60663.0,0.35412736]
[1720023923383,0.12002348,60664.0,60663.0,0.36212736]
[1720023923758,0.11902348,60664.0,60663.0,0.35412736]
[1720023924110,0.11902348,60664.0,60663.0,0.1601988]
[1720023924309,0.11902348,60664.0,60658.0,0.00828]
[1720023924310,0.23434707,60662.0,60658.0,0.20220856]
[1720023924529,0.23434707,60662.0,60659.0,0.1602988]
[1720023924530,0.39701664,60661.0,60659.0,0.1602988]
[1720023924734,0.12333551,60662.0,60661.0,0.19392856]
[1720023924935,0.12817232,60662.0,60661.0,0.35422736]
[1720023925137,0.1,60662.0,60661.0,0.35422736]
[1720023925305,0.77343331,60662.0,60660.0,0.19392856]
[1720023925529,0.0742,60660.0,60658.0,0.00828]
[1720023925689,0.40761257,60659.0,60658.0,0.20220856]
[1720023925883,0.64134366,60659.0,60658.0,0.00828]
[1720023926088,0.83437096,60659.0,60658.0,0.00828]
[1720023927641,0.60002389,60659.0,60658.0,0.00828]
[1720023927795,0.65500696,60659.0,60658.0,0.00828]
[1720023928001,0.50699659,60659.0,60658.0,0.00828]
[1720023928527,0.48063059,60659.0,60658.0,0.01128]
[1720023928739,0.48063059,60659.0,60658.0,0.00828]
[1720023928964,0.62864096,60659.0,60658.0,0.00828]
[1720023929096,0.63012289,60659.0,60658.0,0.00828]
[1720023929303,0.63212289,60659.0,60658.0,0.00828]
[1720023929678,0.75095391,60659.0,60658.0,0.00828]
[1720023929964,0.0370383,60659.0,60658.0,0.1695788]
[1720023930164,0.0370383,60659.0,60658.0,0.36250736]
[1720023930165,0.12971056,60659.0,60658.0,0.36250736]
[1720023930469,0.003,60659.0,60658.0,0.36250736]
[1720023932019,0.003,60659.0,60658.0,0.36350736]
[1720023932020,0.009,60659.0,60658.0,0.36350736]
[1720023932664,0.003,60659.0,60658.0,0.20220856]
[1720023932882,0.003,60659.0,60658.0,0.20820856]
[1720023933082,0.31174946,60660.0,60659.0,0.19392856]
[1720023933284,0.30434995,60660.0,60659.0,0.19392856]
[1720023933779,0.42771253,60660.0,60659.0,0.19392856]
[1720023934089,0.30434995,60660.0,60659.0,0.19392856]
[1720023934292,1.04765495,60660.0,60658.0,0.20320856]
[1720023934492,0.35827895,60659.0,60658.0,0.00828]
[1720023934891,0.45827895,60659.0,60658.0,0.00828]
[1720023935363,0.45827895,60659.0,60658.0,0.3034788]
[1720023935364,0.12504195,60659.0,60658.0,0.3034788]
[1720023935622,0.006,60660.0,60659.0,0.31788149]
[1720023935789,0.006,60660.0,60659.0,0.80943275]
[1720023937341,0.00084,60671.0,60669.0,0.236]
[1720023937484,0.00084,60671.0,60670.0,0.1602988]
[1720023939343,0.00084,60671.0,60670.0,0.1672988]
[1720023939344,0.00184,60671.0,60670.0,0.1672988]
[1720023939493,0.00184,60671.0,60670.0,0.1602988]
[1720023939871,0.00284,60671.0,60670.0,0.1682988]
[1720023940085,0.00084,60671.0,60670.0,0.1602988]
[1720023940282,0.00084,60671.0,60670.0,0.22595173]
[1720023940463,0.00184,60671.0,60670.0,0.1712988]
[1720023940963,0.00284,60671.0,60670.0,0.1772988]
[1720023941410,0.00284,60671.0,60670.0,0.61072736]
[1720023941733,0.00284,60671.0,60670.0,0.60472736]
[1720023941734,0.00184,60671.0,60670.0,0.60472736]
[1720023942021,0.00184,60671.0,60670.0,0.60172736]
[1720023942357,0.00184,60671.0,60670.0,0.73768029]
[1720023942521,0.00184,60671.0,60670.0,0.72968029]
[1720023942724,0.00284,60671.0,60670.0,0.73768029]
[1720023942926,0.00284,60671.0,60670.0,0.72568029]
[1720023942927,0.00184,60671.0,60670.0,0.72568029]
[1720023943152,0.00184,60671.0,60670.0,0.73668029]
[1720023943153,0.00284,60671.0,60670.0,0.73668029]
[1720023943541,0.00284,60671.0,60670.0,0.72568029]
[1720023943542,0.00184,60671.0,60670.0,0.72568029]
[1720023943765,0.00284,60671.0,60670.0,0.73768029]
[1720023944440,0.0860943,60689.0,60670.0,0.73768029]
[1720023944643,0.09850362,60686.0,60678.0,0.19392856]
[1720023944844,0.09850362,60686.0,60679.0,0.1602988]
[1720023944845,0.01370866,60685.0,60679.0,0.1602988]
[1720023945022,0.01370866,60684.0,60679.0,0.1602988]
[1720023945228,0.1,60685.0,60679.0,0.1602988]
[1720023945229,0.01370866,60683.0,60679.0,0.1602988]
[1720023945443,0.01370866,60682.0,60679.0,0.1602988]
[1720023945685,0.1,60686.0,60678.0,0.19392856]
[1720023945686,0.56535766,60681.0,60678.0,0.19392856]
[1720023945841,0.32590066,60680.0,60678.0,0.35422736]
[1720023946037,0.11370866,60679.0,60678.0,0.35422736]
[1720023947082,0.01370866,60679.0,60678.0,0.1602988]
[1720023947240,0.01370866,60679.0,60678.0,0.1632988]
[1720023947447,0.1884,60679.0,60678.0,0.003]
[1720023947647,0.30210866,60679.0,60678.0,0.003]
[1720023948703,0.11370866,60679.0,60678.0,0.003]
[1720023949038,0.11370866,60679.0,60678.0,0.0029]
[1720023949162,0.11370866,60679.0,60678.0,0.0059]
[1720023949973,0.11370866,60679.0,60678.0,0.1661988]
[1720023950222,0.01370866,60679.0,60678.0,0.1631988]
[1720023950447,0.1,60683.0,60678.0,0.1631988]
[1720023950747,0.09848016,60685.0,60679.0,0.1602988]
[1720023950748,0.01370967,60682.0,60679.0,0.1602988]
[1720023950947,0.01370943,60681.0,60679.0,0.1602988]
[1720023951149,0.1,60684.0,60679.0,0.1602988]
[1720023951150,0.01370943,60680.0,60679.0,0.1602988]
[1720023951321,0.20210943,60680.0,60678.0,0.006]
[1720023951528,0.20210943,60680.0,60674.0,0.19392856]
[1720023951529,0.11370943,60679.0,60674.0,0.19392856]
[1720023951736,0.11370943,60679.0,60675.0,0.35422736]
[1720023951737,0.01370943,60678.0,60675.0,0.35422736]
[1720023951943,0.01370943,60678.0,60675.0,0.1602988]
[1720023953614,0.0686,60676.0,60668.0,0.19392856]
[1720023953738,0.0686,60676.0,60672.0,0.19392856]
[1720023953739,0.01370943,60675.0,60672.0,0.19392856]
[1720023953943,0.0686,60676.0,60672.0,0.19392856]
[1720023953944,0.01371101,60674.0,60672.0,0.35422736]
[1720023954423,0.01371101,60673.0,60672.0,0.35422736]
[1720023954543,0.01371112,60673.0,60672.0,0.1602988]
[1720023955652,0.11243727,60673.0,60672.0,0.1602988]
[1720023955858,0.21243727,60673.0,60672.0,0.1602988]
[1720023956251,0.11371112,60673.0,60672.0,0.1602988]
[1720023956871,0.23434707,60670.0,60663.0,0.66992856]
[1720023957112,0.09873984,60668.0,60666.0,0.19392856]
[1720023957294,0.939701,60669.0,60664.0,0.1602988]
[1720023957295,0.78971694,60667.0,60664.0,0.1602988]
[1720023957475,0.12344974,60665.0,60664.0,0.1602988]
[1720023957667,0.13716161,60665.0,60664.0,0.1602988]
[1720023958287,0.01371187,60665.0,60664.0,0.35422736]
[1720023958491,0.1884,60666.0,60665.0,0.19392856]
[1720023958713,0.30211309,60666.0,60665.0,0.35422736]
[1720023959894,0.21249231,60666.0,60665.0,0.35422736]
[1720023960116,0.21249231,60666.0,60665.0,0.46532736]
[1720023960117,0.1,60666.0,60665.0,0.46532736]
[1720023960303,0.09876924,60671.0,60666.0,0.34082856]
[1720023960503,0.01371106,60670.0,60667.0,0.24045462]
[1720023960709,0.1,60670.0,60667.0,0.24045462]
[1720023961308,0.01371121,60669.0,60667.0,0.24045462]
[1720023961528,0.19875968,60670.0,60667.0,0.24045462]
[1720023961728,0.01371118,60669.0,60667.0,0.24045462]
[1720023961927,0.19875968,60670.0,60667.0,0.24045462]
[1720023962132,0.01371118,60669.0,60667.0,0.24045462]
[1720023962339,0.1,60671.0,60667.0,0.24045462]
[1720023962540,0.02931321,60677.0,60672.0,0.43702856]
[1720023962761,0.01370947,60676.0,60674.0,0.19392856]
[1720023962998,0.09875454,60678.0,60675.0,0.1602988]
[1720023963210,0.01370915,60677.0,60675.0,0.1602988]
[1720023963378,0.09875454,60678.0,60675.0,0.1602988]
[1720023963533,0.0137092,60677.0,60675.0,0.1602988]
[1720023963889,0.11246374,60676.0,60675.0,0.1602988]
[1720023964069,0.0137092,60676.0,60675.0,0.1602988]
[1720023964271,0.11245488,60676.0,60675.0,0.1602988]
[1720023964469,0.0137092,60676.0,60675.0,0.1602988]
[1720023965059,0.0137092,60676.0,60675.0,0.1612988]
[1720023965252,0.13713923,60676.0,60675.0,0.1612988]
[1720023965651,0.01870982,60676.0,60675.0,0.1602988]
[1720023966257,0.13713579,60676.0,60675.0,0.1602988]
[1720023967115,0.01370982,60676.0,60675.0,0.61542736]
[1720023967508,0.005,60676.0,60675.0,0.61542736]
[1720023967757,0.02570839,60676.0,60675.0,0.61642736]
[1720023968327,0.01870847,60676.0,60675.0,0.61542736]
[1720023968738,0.01870847,60676.0,60675.0,0.62042736]
[1720023968739,0.018709,60676.0,60675.0,0.62042736]
[1720023968930,0.013709,60676.0,60675.0,0.62042736]
[1720023969201,0.12339744,60679.0,60678.0,0.19392856]
[1720023969398,0.20210899,60679.0,60678.0,0.35422736]
[1720023971503,0.01370899,60679.0,60678.0,0.35422736]
[1720023972312,0.01870899,60679.0,60678.0,0.35422736]
[1720023972866,0.01370899,60679.0,60678.0,0.35422736]
[1720023973291,0.01870899,60679.0,60678.0,0.35422736]
[1720023974104,0.20710899,60679.0,60678.0,0.35422736]
[1720023974305,0.20910899,60679.0,60678.0,0.35422736]
[1720023974621,0.16879181,60679.0,60678.0,0.35422736]
[1720023974822,0.02070899,60679.0,60678.0,0.35422736]
[1720023976830,0.14323631,60679.0,60678.0,0.66768029]
[1720023977211,0.006,60679.0,60678.0,0.72598029]
[1720023979019,0.004,60679.0,60678.0,0.72598029]
[1720023979195,0.005,60679.0,60678.0,0.73998029]
[1720023979398,0.004,60679.0,60678.0,0.72598029]
[1720023979597,0.0988001,60683.0,60682.0,0.19392856]